fUST/lending_fUST_20240410
["ID","MTS","AMOUNT","RATE_DAILY","PERIOD"]
[322043893,1712717025147,-1703.94,0.00021917,2]
[322043894,1712717025173,-507.92,0.00021917,2]
[322043895,1712717025199,-500.0,0.00021917,2]
[322043896,1712717025223,-500.0,0.00021917,2]
[322043897,1712717025250,-157.69929916,0.00021917,2]
[322043898,1712717025275,-573.15,0.00021917,2]
[322043899,1712717025301,-500.0,0.00021917,2]
[322043900,1712717025326,-500.0,0.00021917,2]
[322043901,1712717025355,-500.0,0.00021917,2]
[322043902,1712717025381,-500.0,0.00021917,2]
[322043903,1712717025410,-500.0,0.00021917,2]
[322043904,1712717025436,-151.15889793,0.00021917,2]
[322043905,1712717025462,-500.0,0.00021917,2]
[322043906,1712717025489,-1086.16,0.00021917,2]
[322043907,1712717025513,-500.0,0.00021917,2]
[322043908,1712717025541,-500.0,0.00021917,2]
[322043909,1712717025567,-500.0,0.00021917,2]
[322043910,1712717025592,-499.48597184,0.00021917,2]
[322043911,1712717025617,-500.0,0.00021917,2]
[322043912,1712717025641,-501.28752946,0.00021917,2]
[322043913,1712717025666,-500.0,0.00021917,2]
[322043914,1712717025690,-500.0,0.00021917,2]
[322043915,1712717025717,-500.0,0.00021917,2]
[322043916,1712717025744,-795.37,0.00021917,2]
[322043917,1712717025770,-230.37608815,0.00021917,2]
[322043918,1712717025795,-3335.25,0.00022191,2]
[322043919,1712717025821,-500.0,0.00022191,2]
[322043920,1712717025847,-492.53185764,0.00022191,2]
[322043921,1712717025873,-558.12,0.00022191,2]
[322043922,1712717025898,-500.0,0.00022191,2]
[322043923,1712717025922,-541.32,0.00022191,2]
[322043924,1712717025947,-500.0,0.00022191,2]
[322043925,1712717025972,-500.0,0.00022191,2]
[322043926,1712717026000,-500.0,0.00022191,2]
[322043927,1712717026026,-500.0,0.00022191,2]
[322043928,1712717026051,-500.0,0.00022191,2]
[322043929,1712717026076,-1703.94,0.00022191,2]
[322043930,1712717026102,-507.92,0.00022191,2]
[322043931,1712717026128,-213.78210281,0.00022191,2]
[322043932,1712717026153,-302.53391369,0.00022191,2]
[322043933,1712717026178,-573.15,0.00022191,2]
[322043934,1712717026204,-500.0,0.00022191,2]
[322043935,1712717026229,-500.0,0.00022191,2]
[322043936,1712717026367,-500.0,0.00022191,2]
[322043937,1712717026395,-500.0,0.00022191,2]
[322043938,1712717026422,-1086.16,0.00022191,2]
[322043939,1712717026448,-500.0,0.00022191,2]
[322043940,1712717026473,-500.0,0.00022191,2]
[322043941,1712717026498,-223.66095128,0.00022191,2]
[322043942,1712717026524,-500.0,0.00022191,2]
[322043943,1712717026550,-795.37,0.00022191,2]
[322043944,1712717026579,-505.64234481,0.00022463,2]
[322043945,1712717026606,-502.92175782,0.00022463,2]
[322043946,1712717026636,-3318.28,0.00022464,2]
[322043947,1712717026665,-843.65,0.00022464,2]
[322043948,1712717026693,-500.0,0.00022464,2]
[322043949,1712717026720,-794.34,0.00022464,2]
[322043950,1712717026752,-1581.55,0.00022464,2]
[322043951,1712717026779,-713.13,0.00022464,2]
[322043952,1712717026808,-500.0,0.00022464,2]
[322043953,1712717026834,-3335.25,0.00022465,2]
[322043954,1712717026860,-500.0,0.00022465,2]
[322043955,1712717026886,-558.12,0.00022465,2]
[322043956,1712717026912,-500.0,0.00022465,2]
[322043957,1712717026938,-541.32,0.00022465,2]
[322043958,1712717026964,-500.0,0.00022465,2]
[322043959,1712717026994,-500.0,0.00022465,2]
[322043960,1712717027020,-500.0,0.00022465,2]
[322043961,1712717027045,-500.0,0.00022465,2]
[322043962,1712717027070,-500.0,0.00022465,2]
[322043963,1712717027096,-1703.94,0.00022465,2]
[322043964,1712717027121,-507.92,0.00022465,2]
[322043965,1712717027147,-573.15,0.00022465,2]
[322043966,1712717027172,-500.0,0.00022465,2]
[322043967,1712717027198,-500.0,0.00022465,2]
[322043968,1712717027224,-500.0,0.00022465,2]
[322043969,1712717027253,-1086.16,0.00022465,2]
[322043970,1712717027279,-500.0,0.00022465,2]
[322043971,1712717027304,-500.0,0.00022465,2]
[322043972,1712717027331,-795.37,0.00022465,2]
[322043973,1712717027357,-3318.28,0.00022738,2]
[322043974,1712717027382,-843.65,0.00022738,2]
[322043975,1712717027412,-794.34,0.00022738,2]
[322043976,1712717027438,-1581.55,0.00022738,2]
[322043977,1712717027465,-713.13,0.00022738,2]
[322043978,1712717027495,-252.44475701,0.00022738,2]
[322043979,1712717027522,-3335.25,0.00022739,2]
[322043980,1712717027547,-500.0,0.00022739,2]
[322043981,1712717027574,-558.12,0.00022739,2]
[322043982,1712717027601,-500.0,0.00022739,2]
[322043983,1712717027629,-541.32,0.00022739,2]
[322043984,1712717027657,-500.0,0.00022739,2]
[322043985,1712717027684,-500.0,0.00022739,2]
[322043986,1712717027711,-500.0,0.00022739,2]
[322043987,1712717027737,-500.0,0.00022739,2]
[322043988,1712717027768,-1703.94,0.00022739,2]
[322043989,1712717027795,-507.92,0.00022739,2]
[322043990,1712717027820,-573.15,0.00022739,2]
[322043991,1712717027846,-439.86964422,0.00022739,2]
[322043992,1712717027871,-500.0,0.00022739,2]
[322043993,1712717027897,-1086.16,0.00022739,2]
[322043994,1712717027922,-500.0,0.00022739,2]
[322043995,1712717027947,-500.0,0.00022739,2]
[322043996,1712717027973,-795.37,0.00022739,2]
[322043997,1712717028001,-500.0,0.00023011,2]
[322043998,1712717028027,-500.0,0.00023011,2]
[322043999,1712717028054,-3318.28,0.00023012,2]
[322044000,1712717028079,-843.65,0.00023012,2]
[322044001,1712717028106,-794.34,0.00023012,2]
[322044002,1712717028132,-1581.55,0.00023012,2]
[322044003,1712717028157,-713.13,0.00023012,2]
[322044004,1712717028183,-3335.25,0.00023013,2]
[322044005,1712717028209,-500.0,0.00023013,2]
[322044006,1712717028236,-558.12,0.00023013,2]
[322044007,1712717028267,-425.34408661,0.00023013,2]
[322044008,1712717028294,-541.32,0.00023013,2]
[322044009,1712717028325,-500.0,0.00023013,2]
[322044010,1712717028448,-500.0,0.00023013,2]
[322044011,1712717028479,-500.0,0.00023013,2]
[322044012,1712717028512,-500.0,0.00023013,2]
[322044013,1712717028539,-1703.94,0.00023013,2]
[322044014,1712717028567,-507.92,0.00023013,2]
[322044015,1712717028594,-573.15,0.00023013,2]
[322044016,1712717028624,-500.0,0.00023013,2]
[322044017,1712717028657,-1086.16,0.00023013,2]
[322044018,1712717028685,-500.0,0.00023013,2]
[322044019,1712717028714,-500.0,0.00023013,2]
[322044020,1712717028747,-795.37,0.00023013,2]
[322044021,1712717028797,500.0,0.00021917,2]
[322044022,1712717028833,500.0,0.00022191,2]
[322044023,1712717029004,500.0,0.00021917,2]
[322044024,1712717029040,500.0,0.00022191,2]
[322044025,1712717029076,500.0,0.00022464,2]
[322044026,1712717029105,500.0,0.00022465,2]
[322044027,1712717029137,495.28,0.00022738,2]
[322044028,1712717029172,310.89,0.00022739,2]
[322044029,1712717030233,500.0,0.00021917,2]
[322044030,1712717030589,500.0,0.00022191,2]
[322044031,1712717034736,500.0,0.00021917,2]
[322044032,1712717035024,500.0,0.00022191,2]
[322044033,1712717035188,3128.47,0.00021917,2]
[322044034,1712717035333,500.0,0.00022465,2]
[322044035,1712717035788,3128.47,0.00022191,2]
[322044036,1712717036060,3128.47,0.00022465,2]
[322044037,1712717036368,3128.47,0.00022739,2]
[322044038,1712717036695,3128.47,0.00023013,2]
[322044039,1712717041261,500.0,0.00022464,2]
[322044040,1712717041550,500.0,0.00022738,2]
[322044041,1712717042179,500.0,0.00023012,2]
[322044042,1712717045528,586.94324032,0.00021917,2]
[322044043,1712717045859,3136.05,0.00021917,2]
[322044044,1712717046130,3136.05,0.00022191,2]
[322044101,1712717438497,-381.31262739,0.00021477,2]
[322044102,1712717438508,-239.20502312,0.00021817,2]
[322044103,1712717438517,-271.79249279,0.00021915,2]
[322044104,1712717438620,-155.57869704,0.00021915,2]
[322044105,1712717438664,-471.80064446,0.00021915,2]
[322044106,1712717438674,-164.02935668,0.00021915,2]
[322044107,1712717438683,-500.0,0.00021915,2]
[322044108,1712717438693,-300.0,0.00021916,2]
[322044109,1712717438702,-300.0,0.00021916,2]
[322044110,1712717438714,-500.0,0.00021917,2]
[322044111,1712717438724,-500.0,0.00021917,2]
[322044112,1712717438733,-500.0,0.00021917,2]
[322044113,1712717438741,-500.0,0.00021917,2]
[322044114,1712717438751,-500.0,0.00021917,2]
[322044115,1712717438760,-512.74,0.00021917,2]
[322044116,1712717438769,-500.0,0.00021917,2]
[322044117,1712717438779,-285.84758409,0.00021917,2]
[322044118,1712717438791,-81.81188015,0.00021917,2]
[322044119,1712717438800,-799.48,0.00021917,2]
[322044120,1712717438810,-500.0,0.00021917,2]
[322044121,1712717438819,-500.0,0.00021917,2]
[322044122,1712717438829,-500.0,0.00021917,2]
[322044123,1712717438839,-500.0,0.00021917,2]
[322044124,1712717438848,-500.0,0.00021917,2]
[322044125,1712717438858,-500.0,0.00021917,2]
[322044126,1712717438867,-500.0,0.00021917,2]
[322044127,1712717438876,-521.470582,0.00021917,2]
[322044128,1712717438885,-500.0,0.00021917,2]
[322044129,1712717438894,-500.0,0.00021917,2]
[322044130,1712717438903,-500.0,0.00021917,2]
[322044131,1712717438912,-500.0,0.00021917,2]
[322044132,1712717438923,-500.0,0.00021917,2]
[322044133,1712717438932,-500.0,0.00021917,2]
[322044134,1712717438942,-587.19,0.00021917,2]
[322044135,1712717438951,-694.56,0.00021917,2]
[322044136,1712717438960,-500.0,0.00021917,2]
[322044137,1712717438972,-500.0,0.00021917,2]
[322044138,1712717438981,-502.89002103,0.00021917,2]
[322044139,1712717438990,-500.0,0.00021917,2]
[322044140,1712717438999,-500.0,0.00021917,2]
[322044141,1712717439009,-2874.71,0.00021917,2]
[322044142,1712717439018,-500.0,0.00021917,2]
[322044143,1712717439027,-500.0,0.00021917,2]
[322044144,1712717439036,-500.0,0.00021917,2]
[322044145,1712717439045,-500.0,0.00021917,2]
[322044146,1712717439054,-546.62,0.00021917,2]
[322044147,1712717439063,-501.519856,0.00021917,2]
[322044148,1712717439072,-703.17,0.00021917,2]
[322044149,1712717439081,-5054.96,0.00021917,2]
[322044150,1712717439090,-500.0,0.00021917,2]
[322044151,1712717439099,-500.0,0.00021917,2]
[322044152,1712717439108,-500.0,0.00021917,2]
[322044153,1712717439117,-500.0,0.00021917,2]
[322044154,1712717439126,-501.73429412,0.00021917,2]
[322044155,1712717439135,-1003.18,0.00021917,2]
[322044156,1712717439145,-500.0,0.00021917,2]
[322044157,1712717439154,-178.86461665,0.00021917,2]
[322044158,1712717439165,-321.13538335,0.00021917,2]
[322044159,1712717439175,-500.0,0.00021917,2]
[322044160,1712717439184,-500.0,0.00021917,2]
[322044161,1712717439193,-500.0,0.00021917,2]
[322044162,1712717439202,-500.0,0.00021917,2]
[322044163,1712717439211,-500.0,0.00021917,2]
[322044164,1712717439225,-1056.04,0.00021917,2]
[322044165,1712717439234,-502.0539563,0.00021917,2]
[322044166,1712717439243,-500.0,0.00021917,2]
[322044167,1712717439252,-3233.3,0.00021917,2]
[322044168,1712717439260,-500.0,0.00021917,2]
[322044169,1712717439269,-503.93297484,0.00021917,2]
[322044170,1712717439278,-500.0,0.00021917,2]
[322044171,1712717439287,-717.48,0.00021917,2]
[322044172,1712717439296,-537.16972487,0.00021917,2]
[322044173,1712717439305,-500.0,0.00021917,2]
[322044174,1712717439314,-187.17177939,0.0002198,2]
[322044175,1712717439323,-243.91979073,0.0002198,2]
[322044176,1712717439333,-500.0,0.0002198,2]
[322044177,1712717439342,-504.08068112,0.0002198,2]
[322044178,1712717439351,-500.0,0.0002198,2]
[322044179,1712717439360,-296.57240404,0.0002198,2]
[322044180,1712717439369,-24900.0,0.00021981,2]
[322044181,1712717439378,-500.0,0.0002219,2]
[322044182,1712717439387,-500.0,0.0002219,2]
[322044183,1712717439396,-500.0,0.0002219,2]
[322044184,1712717439405,-549.06312062,0.0002219,2]
[322044185,1712717439414,-257.50561854,0.0002219,2]
[322044186,1712717439426,-500.0,0.0002219,2]
[322044187,1712717439435,-500.0,0.00022191,2]
[322044188,1712717439444,-500.0,0.00022191,2]
[322044189,1712717439452,-500.0,0.00022191,2]
[322044190,1712717439463,-500.0,0.00022191,2]
[322044191,1712717439473,-500.0,0.00022191,2]
[322044192,1712717439481,-512.74,0.00022191,2]
[322044193,1712717439490,-648.12681131,0.00022191,2]
[322044194,1712717439501,-799.48,0.00022191,2]
[322044195,1712717439510,-500.0,0.00022191,2]
[322044196,1712717439519,-500.0,0.00022191,2]
[322044197,1712717439529,-500.0,0.00022191,2]
[322044198,1712717439538,-500.0,0.00022191,2]
[322044199,1712717439547,-500.0,0.00022191,2]
[322044200,1712717439556,-500.0,0.00022191,2]
[322044201,1712717439565,-500.0,0.00022191,2]
[322044202,1712717439574,-500.0,0.00022191,2]
[322044203,1712717439584,-587.19,0.00022191,2]
[322044204,1712717439593,-694.56,0.00022191,2]
[322044205,1712717439604,-2874.71,0.00022191,2]
[322044206,1712717439613,-500.0,0.00022191,2]
[322044207,1712717439622,-500.0,0.00022191,2]
[322044208,1712717439631,-500.0,0.00022191,2]
[322044209,1712717439640,-703.17,0.00022191,2]
[322044210,1712717439650,-5054.96,0.00022191,2]
[322044211,1712717439658,-500.0,0.00022191,2]
[322044212,1712717439669,-500.0,0.00022191,2]
[322044213,1712717439678,-501.01806855,0.00022191,2]
[322044214,1712717439687,-1003.18,0.00022191,2]
[322044215,1712717439696,-500.0,0.00022191,2]
[322044216,1712717439705,-500.0,0.00022191,2]
[322044217,1712717439717,-500.0,0.00022191,2]
[322044218,1712717439726,-500.0,0.00022191,2]
[322044219,1712717439735,-1056.04,0.00022191,2]
[322044220,1712717439744,-3233.3,0.00022191,2]
[322044221,1712717439753,-500.0,0.00022191,2]
[322044222,1712717439762,-500.0,0.00022191,2]
[322044223,1712717439771,-717.48,0.00022191,2]
[322044224,1712717439780,-944.56,0.00022464,2]
[322044225,1712717439789,-506.06,0.00022464,2]
[322044226,1712717439798,-500.0,0.00022464,2]
[322044227,1712717439807,-520.98050546,0.00022464,2]
[322044228,1712717439816,-500.0,0.00022464,2]
[322044229,1712717439825,-500.0,0.00022464,2]
[322044230,1712717439835,-500.0,0.00022464,2]
[322044231,1712717439844,-500.0,0.00022464,2]
[322044232,1712717439853,-500.0,0.00022464,2]
[322044234,1712717439862,-2044.35,0.00022464,2]
[322044235,1712717439871,-571.14,0.00022464,2]
[322044236,1712717439880,-500.0,0.00022464,2]
[322044237,1712717439889,-500.0,0.00022464,2]
[322044238,1712717439899,-500.0,0.00022465,2]
[322044239,1712717439908,-500.0,0.00022465,2]
[322044240,1712717439918,-500.0,0.00022465,2]
[322044242,1712717439927,-500.0,0.00022465,2]
[322044244,1712717439936,-500.0,0.00022465,2]
[322044245,1712717439945,-512.74,0.00022465,2]
[322044246,1712717439955,-799.48,0.00022465,2]
[322044247,1712717439966,-500.0,0.00022465,2]
[322044248,1712717439975,-429.20825194,0.00022465,2]
[322044249,1712717439984,-500.0,0.00022465,2]
[322044250,1712717439993,-500.0,0.00022465,2]
[322044251,1712717440003,-500.0,0.00022465,2]
[322044252,1712717440012,-500.0,0.00022465,2]
[322044253,1712717440021,-587.19,0.00022465,2]
[322044254,1712717440030,-694.56,0.00022465,2]
[322044255,1712717440039,-2874.71,0.00022465,2]
[322044256,1712717440049,-500.0,0.00022465,2]
[322044257,1712717440058,-500.0,0.00022465,2]
[322044258,1712717440067,-703.17,0.00022465,2]
[322044259,1712717440076,-5054.96,0.00022465,2]
[322044260,1712717440086,-500.0,0.00022465,2]
[322044261,1712717440096,-1003.18,0.00022465,2]
[322044262,1712717440105,-634.7734702,0.00022465,2]
[322044263,1712717440114,-500.0,0.00022465,2]
[322044264,1712717440123,-1056.04,0.00022465,2]
[322044265,1712717440132,-3233.3,0.00022465,2]
[322044266,1712717440142,-500.0,0.00022465,2]
[322044267,1712717440151,-500.0,0.00022465,2]
[322044268,1712717440161,-717.48,0.00022465,2]
[322044269,1712717440170,-944.56,0.00022738,2]
[322044270,1712717440180,-506.06,0.00022738,2]
[322044271,1712717440188,-500.0,0.00022738,2]
[322044272,1712717440198,-500.0,0.00022738,2]
[322044274,1712717440206,-500.0,0.00022738,2]
[322044276,1712717440218,-500.0,0.00022738,2]
[322044278,1712717440227,-500.0,0.00022738,2]
[322044280,1712717440236,-500.0,0.00022738,2]
[322044282,1712717440244,-2044.35,0.00022738,2]
[322044284,1712717440254,-571.14,0.00022738,2]
[322044285,1712717440263,-500.0,0.00022738,2]
[322044286,1712717440272,-504.06903233,0.00022738,2]
[322044287,1712717440281,-27313.40873317,0.00022739,2]
[322044288,1712717440289,-500.0,0.00022739,2]
[322044289,1712717440298,-500.0,0.00022739,2]
[322044290,1712717440307,-500.0,0.00022739,2]
[322044291,1712717440316,-571.66702092,0.00022739,2]
[322044292,1712717440326,-512.74,0.00022739,2]
[322044293,1712717440335,-799.48,0.00022739,2]
[322044294,1712717440345,-500.0,0.00022739,2]
[322044295,1712717440353,-500.0,0.00022739,2]
[322044297,1712717440362,-587.19,0.00022739,2]
[322044298,1712717440371,-694.56,0.00022739,2]
[322044299,1712717440381,-2874.71,0.00022739,2]
[322044300,1712717440390,-500.0,0.00022739,2]
[322044301,1712717440399,-500.0,0.00022739,2]
[322044302,1712717440408,-703.17,0.00022739,2]
[322044303,1712717440418,-5054.96,0.00022739,2]
[322044305,1712717440429,-500.0,0.00022739,2]
[322044306,1712717440439,-1003.18,0.00022739,2]
[322044307,1712717440448,-1056.04,0.00022739,2]
[322044308,1712717440457,-3233.3,0.00022739,2]
[322044309,1712717440469,-500.0,0.00022739,2]
[322044310,1712717440478,-500.0,0.00022739,2]
[322044311,1712717440488,-717.48,0.00022739,2]
[322044312,1712717440498,-500.0,0.00023011,2]
[322044313,1712717440508,-500.0,0.00023011,2]
[322044314,1712717440517,-506.88398481,0.00023011,2]
[322044315,1712717440526,-504.95897543,0.00023011,2]
[322044316,1712717440535,-1414.77,0.00023011,2]
[322044317,1712717440544,-502.94347435,0.00023011,2]
[322044318,1712717440553,-500.0,0.00023011,2]
[322044319,1712717440563,-944.56,0.00023012,2]
[322044320,1712717440573,-506.06,0.00023012,2]
[322044321,1712717440582,-500.0,0.00023012,2]
[322044322,1712717440592,-316.09,0.00023012,2]
[322044323,1712717440601,-500.0,0.00023012,2]
[322044324,1712717440610,-500.0,0.00023012,2]
[322044325,1712717440620,-500.0,0.00023012,2]
[322044326,1712717440629,-500.0,0.00023012,2]
[322044327,1712717440638,-2044.35,0.00023012,2]
[322044328,1712717440647,-571.14,0.00023012,2]
[322044329,1712717440656,-500.0,0.00023012,2]
[322044330,1712717440665,-500.0,0.00023013,2]
[322044331,1712717440675,-500.0,0.00023013,2]
[322044332,1712717440684,-500.0,0.00023013,2]
[322044333,1712717440694,-512.74,0.00023013,2]
[322044334,1712717440703,-799.48,0.00023013,2]
[322044335,1712717440712,-500.0,0.00023013,2]
[322044336,1712717440723,-500.0,0.00023013,2]
[322044337,1712717440733,-587.19,0.00023013,2]
[322044338,1712717440742,-694.56,0.00023013,2]
[322044339,1712717440751,-2874.71,0.00023013,2]
[322044340,1712717440760,-500.0,0.00023013,2]
[322044341,1712717440769,-500.0,0.00023013,2]
[322044342,1712717440780,-703.17,0.00023013,2]
[322044343,1712717440789,-5054.96,0.00023013,2]
[322044344,1712717440798,-500.0,0.00023013,2]
[322044345,1712717440808,-1003.18,0.00023013,2]
[322044346,1712717440817,-1056.04,0.00023013,2]
[322044347,1712717440827,-3233.3,0.00023013,2]
[322044348,1712717440836,-334.29840605,0.00023013,2]
[322044349,1712717440845,-500.0,0.00023013,2]
[322044350,1712717440855,-717.48,0.00023013,2]
[322044351,1712717440865,-506.37377339,0.00023284,2]
[322044352,1712717440874,-500.0,0.00023285,2]
[322044353,1712717440884,-500.0,0.00023285,2]
[322044354,1712717440893,-1414.77,0.00023285,2]
[322044355,1712717440904,-500.0,0.00023285,2]
[322044356,1712717440914,-500.0,0.00023286,2]
[322044357,1712717440924,-500.0,0.00023286,2]
[322044358,1712717440934,-944.56,0.00023286,2]
[322044359,1712717440944,-506.06,0.00023286,2]
[322044360,1712717440953,-500.0,0.00023286,2]
[322044361,1712717440963,-503.45770841,0.00023286,2]
[322044362,1712717440974,-500.0,0.00023286,2]
[322044363,1712717440983,-500.0,0.00023286,2]
[322044364,1712717440993,-505.67242862,0.00023286,2]
[322044365,1712717441002,-505.05500064,0.00023286,2]
[322044366,1712717441011,-500.0,0.00023286,2]
[322044367,1712717441020,-500.0,0.00023286,2]
[322044368,1712717441030,-500.0,0.00023286,2]
[322044369,1712717441040,-519.33224481,0.00023286,2]
[322044370,1712717441049,-500.0,0.00023286,2]
[322044371,1712717441059,-500.0,0.00023286,2]
[322044372,1712717441068,-2044.35,0.00023286,2]
[322044373,1712717441077,-500.0,0.00023286,2]
[322044374,1712717441086,-571.14,0.00023286,2]
[322044375,1712717441096,-500.0,0.00023286,2]
[322044376,1712717441106,-500.0,0.00023287,2]
[322044377,1712717441116,-622.78627392,0.00023287,2]
[322044378,1712717441125,-500.0,0.00023287,2]
[322044379,1712717441134,-644.21022522,0.00023287,2]
[322044380,1712717441144,-512.74,0.00023287,2]
[322044381,1712717441153,-799.48,0.00023287,2]
[322044382,1712717441162,-500.0,0.00023287,2]
[322044383,1712717441171,-500.0,0.00023287,2]
[322044384,1712717441180,-587.19,0.00023287,2]
[322044385,1712717441190,-694.56,0.00023287,2]
[322044386,1712717441199,-2874.71,0.00023287,2]
[322044387,1712717441208,-500.0,0.00023287,2]
[322044388,1712717441220,-500.0,0.00023287,2]
[322044389,1712717441229,-703.17,0.00023287,2]
[322044390,1712717441238,-5054.96,0.00023287,2]
[322044391,1712717441247,-500.0,0.00023287,2]
[322044392,1712717441257,-1003.18,0.00023287,2]
[322044393,1712717441266,-1056.04,0.00023287,2]
[322044394,1712717441277,-3233.3,0.00023287,2]
[322044395,1712717441287,-500.0,0.00023287,2]
[322044396,1712717441295,-717.48,0.00023287,2]
[322044397,1712717441305,-627.70504764,0.00023307,2]
[322044398,1712717441314,-380.44081084,0.00023559,2]
[322044399,1712717441325,-500.0,0.00023559,2]
[322044400,1712717441335,-1414.77,0.00023559,2]
[322044401,1712717441346,-500.0,0.00023559,2]
[322044402,1712717441355,-500.0,0.0002356,2]
[322044403,1712717441364,-504.31633005,0.0002356,2]
[322044404,1712717441373,-944.56,0.0002356,2]
[322044405,1712717441382,-506.06,0.0002356,2]
[322044406,1712717441391,-500.0,0.0002356,2]
[322044407,1712717441401,-500.0,0.0002356,2]
[322044408,1712717441410,-437.84,0.0002356,2]
[322044409,1712717441420,-500.0,0.0002356,2]
[322044410,1712717441432,-500.0,0.0002356,2]
[322044411,1712717441442,-171.83381504,0.0002356,2]
[322044412,1712717441452,-2044.35,0.0002356,2]
[322044413,1712717441461,-571.14,0.0002356,2]
[322044414,1712717441472,-500.0,0.0002356,2]
[322044415,1712717441482,-500.0,0.00023561,2]
[322044416,1712717441491,-575.38235334,0.00023561,2]
[322044417,1712717441502,-512.74,0.00023561,2]
[322044418,1712717441511,-799.48,0.00023561,2]
[322044419,1712717441520,-500.0,0.00023561,2]
[322044420,1712717441530,-500.0,0.00023561,2]
[322044421,1712717441540,-587.19,0.00023561,2]
[322044422,1712717441549,-694.56,0.00023561,2]
[322044423,1712717441559,-2874.71,0.00023561,2]
[322044424,1712717441568,-500.0,0.00023561,2]
[322044425,1712717441577,-500.0,0.00023561,2]
[322044426,1712717441587,-703.17,0.00023561,2]
[322044427,1712717441596,-5054.96,0.00023561,2]
[322044428,1712717441605,-500.0,0.00023561,2]
[322044429,1712717441614,-1003.18,0.00023561,2]
[322044430,1712717441624,-1056.04,0.00023561,2]
[322044431,1712717441633,-3233.3,0.00023561,2]
[322044432,1712717441642,-500.0,0.00023561,2]
[322044433,1712717441652,-717.48,0.00023561,2]
[322044434,1712717441662,-399.41214853,0.00023816,2]
[322044435,1712717441671,-420.0,0.00023817,2]
[322044436,1712717441680,-425.82148711,0.00023833,2]
[322044437,1712717441690,-500.0,0.00023833,2]
[322044438,1712717441699,-1414.77,0.00023833,2]
[322044439,1712717441708,-500.0,0.00023833,2]
[322044440,1712717441719,-500.0,0.00023834,2]
[322044441,1712717441728,-944.56,0.00023834,2]
[322044442,1712717441737,-506.06,0.00023834,2]
[322044443,1712717441748,-500.0,0.00023834,2]
[322044444,1712717441757,-500.0,0.00023834,2]
[322044445,1712717441766,-500.0,0.00023834,2]
[322044446,1712717441776,-2044.35,0.00023834,2]
[322044447,1712717441785,-571.14,0.00023834,2]
[322044448,1712717441795,-500.0,0.00023834,2]
[322044449,1712717441804,-500.0,0.00023835,2]
[322044450,1712717441814,-500.0,0.00023835,2]
[322044451,1712717441823,-512.74,0.00023835,2]
[322044452,1712717441832,-799.48,0.00023835,2]
[322044453,1712717441946,-500.0,0.00023835,2]
[322044454,1712717441955,-500.0,0.00023835,2]
[322044455,1712717441966,-587.19,0.00023835,2]
[322044456,1712717441976,-694.56,0.00023835,2]
[322044457,1712717441986,-2874.71,0.00023835,2]
[322044458,1712717441995,-500.0,0.00023835,2]
[322044459,1712717442004,-500.0,0.00023835,2]